[Event "Titled Tuesday Blitz November 14 Late 2023"]
[White "KorolDimitriy75"]
[Black "Thomforde-Toates, Noah"]
[BlackFideId "30951992"]
[WhiteElo "2351"]
[BlackElo "2627"]
[Result "0-1"]
[Round "1"]
[TimeControl "180+1"]
[Date "2023.11.14"]
[WhiteClock "0:00:00"]
[BlackClock "0:01:49"]
[Board "105"]

1. d4 {[%clk 0:03:00]}  Nf6 {[%clk 0:02:59]} 2. c4 {[%clk 0:03:00]}  g6 {[%clk 0:03:00]} 3. Nc3 {[%clk 0:03:01]}  Bg7 {[%clk 0:03:00]} 4. e4 {[%clk 0:03:01]}  d6 {[%clk 0:03:00]} 5. Nf3 {[%clk 0:03:02]}  O-O {[%clk 0:03:00]} 6. Be2 {[%clk 0:03:03]}  e5 {[%clk 0:03:01]} 7. dxe5 {[%clk 0:03:03]}  dxe5 {[%clk 0:03:01]} 8. Qxd8 {[%clk 0:03:04]}  Rxd8 {[%clk 0:03:01]} 9. Bg5 {[%clk 0:03:05]}  Rf8 {[%clk 0:03:00]} 10. O-O-O {[%clk 0:03:02]}  c6 {[%clk 0:03:00]} 11. Nxe5 {[%clk 0:02:54]}  Nxe4 {[%clk 0:03:00]} 12. Nxe4 {[%clk 0:02:53]}  Bxe5 {[%clk 0:03:00]} 13. f4 {[%clk 0:02:54]}  Bg7 {[%clk 0:02:59]} 14. Bf3 {[%clk 0:02:46]}  Na6 {[%clk 0:02:53]} 15. Be7 {[%clk 0:02:13]}  Re8 {[%clk 0:02:53]} 16. Nf6+ {[%clk 0:02:13]}  Bxf6 {[%clk 0:02:53]} 17. Bxf6 {[%clk 0:02:14]}  Bf5 {[%clk 0:02:52]} 18. Rhe1 {[%clk 0:00:23]}  Nb4 {[%clk 0:02:47]} 19. Rxe8+ {[%clk 0:00:18]}  Rxe8 {[%clk 0:02:48]} 20. g3 {[%clk 0:00:14]}  Nxa2+ {[%clk 0:02:45]} 21. Kd2 {[%clk 0:00:14]}  Re6 {[%clk 0:02:41]} 22. Bh4 {[%clk 0:00:13]}  Rd6+ {[%clk 0:02:40]} 23. Ke1 {[%clk 0:00:13]}  Rxd1+ {[%clk 0:02:40]} 24. Kxd1 {[%clk 0:00:14]}  Be6 {[%clk 0:02:31]} 25. b3 {[%clk 0:00:13]}  Kf8 {[%clk 0:02:30]} 26. Bf6 {[%clk 0:00:12]}  Nb4 {[%clk 0:02:28]} 27. Kd2 {[%clk 0:00:12]}  Na6 {[%clk 0:02:27]} 28. Bd4 {[%clk 0:00:11]}  Ke7 {[%clk 0:02:23]} 29. Bxa7 {[%clk 0:00:11]}  Kd6 {[%clk 0:02:24]} 30. Be3 {[%clk 0:00:11]}  Nc5 {[%clk 0:02:23]} 31. Kc3 {[%clk 0:00:11]}  Bf5 {[%clk 0:02:17]} 32. Bd4 {[%clk 0:00:09]}  Nd7 {[%clk 0:02:14]} 33. b4 {[%clk 0:00:09]}  b6 {[%clk 0:02:14]} 34. g4 {[%clk 0:00:06]}  Be6 {[%clk 0:02:13]} 35. h3 {[%clk 0:00:06]}  c5 {[%clk 0:02:13]} 36. bxc5+ {[%clk 0:00:06]}  Nxc5 {[%clk 0:02:14]} 37. Be5+ {[%clk 0:00:05]}  Kd7 {[%clk 0:02:13]} 38. Kd4 {[%clk 0:00:05]}  Nb3+ {[%clk 0:02:09]} 39. Kc3 {[%clk 0:00:04]}  Na5 {[%clk 0:02:09]} 40. Kd4 {[%clk 0:00:04]}  Bxc4 {[%clk 0:02:07]} 41. Be4 {[%clk 0:00:04]}  b5 {[%clk 0:02:02]} 42. f5 {[%clk 0:00:03]}  Bf1 {[%clk 0:01:58]} 43. h4 {[%clk 0:00:03]}  Bh3 {[%clk 0:01:57]} 44. fxg6 {[%clk 0:00:02]}  fxg6 {[%clk 0:01:58]} 45. g5 {[%clk 0:00:02]}  Nc4 {[%clk 0:01:56]} 46. Bd5 {[%clk 0:00:02]}  Nxe5 {[%clk 0:01:55]} 47. Kxe5 {[%clk 0:00:03]}  Ke7 {[%clk 0:01:53]} 48. Bg8 {[%clk 0:00:02]}  b4 {[%clk 0:01:50]} 49. Kd4 {[%clk 0:00:00]}  Be6 {[%clk 0:01:49]} 0-1


[Site "https://www.chess.com"]

[Event "Titled Tuesday Blitz November 14 Late 2023"]
[White "Becerra, Juan David"]
[Black "ArtemDyachuk"]
[WhiteFideId "4404998"]
[WhiteElo "2347"]
[BlackElo "2625"]
[Result "0-1"]
[Round "1"]
[TimeControl "180+1"]
[Date "2023.11.14"]
[WhiteClock "0:00:00"]
[BlackClock "0:00:07"]
[Board "107"]

1. d4 {[%clk 0:02:57]}  Nf6 {[%clk 0:02:59]} 2. Nc3 {[%clk 0:02:50]}  d5 {[%clk 0:02:57]} 3. Bf4 {[%clk 0:02:46]}  c6 {[%clk 0:02:56]} 4. Nf3 {[%clk 0:02:46]}  Qb6 {[%clk 0:02:55]} 5. Rb1 {[%clk 0:02:36]}  Bf5 {[%clk 0:02:53]} 6. e3 {[%clk 0:02:35]}  e6 {[%clk 0:02:52]} 7. Bd3 {[%clk 0:02:34]}  Bxd3 {[%clk 0:02:51]} 8. cxd3 {[%clk 0:02:35]}  Nbd7 {[%clk 0:02:48]} 9. e4 {[%clk 0:02:33]}  dxe4 {[%clk 0:02:40]} 10. dxe4 {[%clk 0:02:34]}  Qa6 {[%clk 0:02:39]} 11. b4 {[%clk 0:02:01]}  Qc4 {[%clk 0:02:26]} 12. Qb3 {[%clk 0:02:01]}  Qxb3 {[%clk 0:02:24]} 13. Rxb3 {[%clk 0:02:02]}  Be7 {[%clk 0:02:19]} 14. O-O {[%clk 0:01:56]}  O-O {[%clk 0:02:18]} 15. Re1 {[%clk 0:01:51]}  b5 {[%clk 0:02:13]} 16. a4 {[%clk 0:01:35]}  a6 {[%clk 0:02:04]} 17. a5 {[%clk 0:01:33]}  Rfc8 {[%clk 0:01:59]} 18. Rc1 {[%clk 0:01:18]}  Ne8 {[%clk 0:01:57]} 19. Ne2 {[%clk 0:01:16]}  Nd6 {[%clk 0:01:54]} 20. Ng3 {[%clk 0:01:16]}  Nc4 {[%clk 0:01:53]} 21. Nd2 {[%clk 0:01:16]}  Nd6 {[%clk 0:01:44]} 22. e5 {[%clk 0:01:08]}  Ne8 {[%clk 0:01:42]} 23. Nde4 {[%clk 0:01:07]}  Nc7 {[%clk 0:01:36]} 24. Nd6 {[%clk 0:01:05]}  Bxd6 {[%clk 0:01:35]} 25. exd6 {[%clk 0:01:06]}  Nd5 {[%clk 0:01:36]} 26. Be3 {[%clk 0:00:57]}  N7f6 {[%clk 0:01:15]} 27. f3 {[%clk 0:00:52]}  Rd8 {[%clk 0:00:58]} 28. Rxc6 {[%clk 0:00:48]}  Rac8 {[%clk 0:00:58]} 29. Rxa6 {[%clk 0:00:41]}  Rc4 {[%clk 0:00:46]} 30. Ne4 {[%clk 0:00:25]}  Nxb4 {[%clk 0:00:36]} 31. Rb6 {[%clk 0:00:24]}  Nfd5 {[%clk 0:00:19]} 32. Rxb5 {[%clk 0:00:20]}  Nc6 {[%clk 0:00:19]} 33. Nd2 {[%clk 0:00:05]}  Ra4 {[%clk 0:00:19]} 34. Kf2 {[%clk 0:00:04]}  h5 {[%clk 0:00:17]} 35. Ne4 {[%clk 0:00:02]}  Nxa5 {[%clk 0:00:15]} 36. Nc3 {[%clk 0:00:02]}  Ra1 {[%clk 0:00:13]} 37. Nxd5 {[%clk 0:00:02]}  exd5 {[%clk 0:00:11]} 38. Rb8 {[%clk 0:00:02]}  Nxb3 {[%clk 0:00:06]} 39. Rxd8+ {[%clk 0:00:02]}  Kh7 {[%clk 0:00:07]} 40. Rb8 {[%clk 0:00:02]}  Na5 {[%clk 0:00:05]} 41. d7 {[%clk 0:00:03]}  Nc6 {[%clk 0:00:05]} 42. d8=Q {[%clk 0:00:02]}  Ra2+ {[%clk 0:00:06]} 43. Kg3 {[%clk 0:00:02]}  Nxd8 {[%clk 0:00:06]} 44. Rxd8 {[%clk 0:00:03]}  Ra3 {[%clk 0:00:06]} 45. Bf4 {[%clk 0:00:03]}  f6 {[%clk 0:00:04]} 46. Rxd5 {[%clk 0:00:03]}  Rd3 {[%clk 0:00:05]} 47. Rxh5+ {[%clk 0:00:02]}  Kg6 {[%clk 0:00:05]} 48. Bd6 {[%clk 0:00:01]}  Kf7 {[%clk 0:00:05]} 49. Rd5 {[%clk 0:00:01]}  Ke6 {[%clk 0:00:06]} 50. Rc5 {[%clk 0:00:01]}  Kxd6 {[%clk 0:00:06]} 51. Kf4 {[%clk 0:00:02]}  Rxd4+ {[%clk 0:00:06]} 52. Kf5 {[%clk 0:00:00]}  Kxc5 {[%clk 0:00:07]} 0-1


[Site "https://www.chess.com"]

[Event "Titled Tuesday Blitz November 14 Late 2023"]
[White "Cremisi, Daniel"]
[Black "Ward, Ieuan C"]
[WhiteFideId "2089882"]
[BlackFideId "406627"]
[WhiteElo "2624"]
[BlackElo "2346"]
[Result "0-1"]
[Round "1"]
[TimeControl "180+1"]
[Date "2023.11.14"]
[WhiteClock "0:01:51"]
[BlackClock "0:01:00"]
[Board "108"]

1. d4 {[%clk 0:03:00]}  e6 {[%clk 0:03:00]} 2. c4 {[%clk 0:03:01]}  d5 {[%clk 0:03:00]} 3. Nc3 {[%clk 0:03:01]}  Nf6 {[%clk 0:03:01]} 4. cxd5 {[%clk 0:03:01]}  exd5 {[%clk 0:03:00]} 5. Bg5 {[%clk 0:03:01]}  Be7 {[%clk 0:03:00]} 6. e3 {[%clk 0:03:01]}  c6 {[%clk 0:02:59]} 7. Bd3 {[%clk 0:03:01]}  O-O {[%clk 0:02:59]} 8. Qc2 {[%clk 0:03:02]}  Nbd7 {[%clk 0:02:59]} 9. Nge2 {[%clk 0:03:02]}  Re8 {[%clk 0:02:59]} 10. O-O {[%clk 0:03:02]}  Nf8 {[%clk 0:02:59]} 11. Rae1 {[%clk 0:02:59]}  Be6 {[%clk 0:02:48]} 12. f3 {[%clk 0:02:58]}  Rc8 {[%clk 0:02:48]} 13. e4 {[%clk 0:02:58]}  N6d7 {[%clk 0:02:36]} 14. Bxe7 {[%clk 0:02:58]}  Qxe7 {[%clk 0:02:31]} 15. e5 {[%clk 0:02:58]}  c5 {[%clk 0:02:28]} 16. f4 {[%clk 0:02:58]}  Bg4 {[%clk 0:02:17]} 17. Qd2 {[%clk 0:02:55]}  Bxe2 {[%clk 0:02:13]} 18. Bxe2 {[%clk 0:02:52]}  cxd4 {[%clk 0:02:08]} 19. Qxd4 {[%clk 0:02:51]}  Nb6 {[%clk 0:02:01]} 20. Bf3 {[%clk 0:02:50]}  Ne6 {[%clk 0:01:59]} 21. Qd2 {[%clk 0:02:49]}  d4 {[%clk 0:01:57]} 22. Ne4 {[%clk 0:02:47]}  Nc4 {[%clk 0:01:55]} 23. Qf2 {[%clk 0:02:43]}  Ne3 {[%clk 0:01:52]} 24. Nd6 {[%clk 0:02:42]}  Rc2 {[%clk 0:01:47]} 25. Re2 {[%clk 0:02:42]}  Rxe2 {[%clk 0:01:46]} 26. Bxe2 {[%clk 0:02:40]}  Nxf1 {[%clk 0:01:44]} 27. Nxe8 {[%clk 0:02:39]}  Qxe8 {[%clk 0:01:40]} 28. Bxf1 {[%clk 0:02:36]}  Qa4 {[%clk 0:01:29]} 29. b3 {[%clk 0:02:33]}  Qb4 {[%clk 0:01:26]} 30. Bc4 {[%clk 0:02:32]}  Qc3 {[%clk 0:01:22]} 31. g3 {[%clk 0:02:28]}  a6 {[%clk 0:01:17]} 32. f5 {[%clk 0:02:27]}  Ng5 {[%clk 0:01:14]} 33. e6 {[%clk 0:02:24]}  Nh3+ {[%clk 0:01:10]} 34. Kg2 {[%clk 0:02:21]}  Nxf2 {[%clk 0:01:10]} 35. e7 {[%clk 0:02:21]}  Qe3 {[%clk 0:01:02]} 36. Be6 {[%clk 0:02:19]}  Qe4+ {[%clk 0:01:00]} 37. Kxf2 {[%clk 0:01:51]}  Qc6 {[%clk 0:01:00]} 0-1


[Site "https://www.chess.com"]

[Event "Titled Tuesday Blitz November 14 Late 2023"]
[White "Diaz, Fernando"]
[Black "Sakun, Volodymyr"]
[WhiteFideId "3701255"]
[BlackFideId "14114062"]
[WhiteElo "2342"]
[BlackElo "2617"]
[Result "0-1"]
[Round "1"]
[TimeControl "180+1"]
[Date "2023.11.14"]
[WhiteClock "0:00:00"]
[BlackClock "0:00:13"]
[Board "111"]

1. e4 {[%clk 0:02:59]}  c5 {[%clk 0:02:59]} 2. d4 {[%clk 0:02:58]}  cxd4 {[%clk 0:02:59]} 3. c3 {[%clk 0:02:58]}  d5 {[%clk 0:02:58]} 4. exd5 {[%clk 0:02:58]}  Qxd5 {[%clk 0:02:56]} 5. cxd4 {[%clk 0:02:59]}  Nc6 {[%clk 0:02:52]} 6. Nf3 {[%clk 0:03:00]}  e6 {[%clk 0:02:49]} 7. Nc3 {[%clk 0:02:59]}  Bb4 {[%clk 0:02:48]} 8. Be2 {[%clk 0:02:53]}  Nf6 {[%clk 0:02:43]} 9. O-O {[%clk 0:02:53]}  Qd8 {[%clk 0:02:37]} 10. Bg5 {[%clk 0:02:52]}  Be7 {[%clk 0:02:35]} 11. Bb5 {[%clk 0:02:47]}  O-O {[%clk 0:02:31]} 12. Bxc6 {[%clk 0:02:35]}  bxc6 {[%clk 0:02:32]} 13. Ne5 {[%clk 0:02:35]}  Bb7 {[%clk 0:02:26]} 14. Rc1 {[%clk 0:02:32]}  c5 {[%clk 0:01:58]} 15. dxc5 {[%clk 0:02:29]}  Bxc5 {[%clk 0:01:56]} 16. Qxd8 {[%clk 0:02:21]}  Rfxd8 {[%clk 0:01:54]} 17. Rfd1 {[%clk 0:02:07]}  Bd4 {[%clk 0:01:39]} 18. Nc4 {[%clk 0:01:47]}  Rac8 {[%clk 0:01:21]} 19. Na5 {[%clk 0:01:43]}  Ba8 {[%clk 0:01:14]} 20. Nb3 {[%clk 0:01:43]}  Bb6 {[%clk 0:00:58]} 21. Rxd8+ {[%clk 0:01:44]}  Rxd8 {[%clk 0:00:58]} 22. Na4 {[%clk 0:01:35]}  Bxf2+ {[%clk 0:00:54]} 23. Kf1 {[%clk 0:01:25]}  Bb6 {[%clk 0:00:48]} 24. Nxb6 {[%clk 0:01:23]}  axb6 {[%clk 0:00:49]} 25. Nd4 {[%clk 0:01:00]}  h6 {[%clk 0:00:45]} 26. Bxf6 {[%clk 0:00:55]}  gxf6 {[%clk 0:00:45]} 27. Nb5 {[%clk 0:00:54]}  Bd5 {[%clk 0:00:41]} 28. a3 {[%clk 0:00:51]}  Be4 {[%clk 0:00:38]} 29. Nc3 {[%clk 0:00:41]}  Bc6 {[%clk 0:00:35]} 30. Rc2 {[%clk 0:00:37]}  Kf8 {[%clk 0:00:32]} 31. Kf2 {[%clk 0:00:36]}  Ke7 {[%clk 0:00:31]} 32. Ke3 {[%clk 0:00:36]}  f5 {[%clk 0:00:31]} 33. b4 {[%clk 0:00:30]}  e5 {[%clk 0:00:29]} 34. g3 {[%clk 0:00:30]}  Rd4 {[%clk 0:00:26]} 35. Ne2 {[%clk 0:00:25]}  Re4+ {[%clk 0:00:25]} 36. Kf2 {[%clk 0:00:26]}  Ba4 {[%clk 0:00:23]} 37. Rc3 {[%clk 0:00:26]}  Bb5 {[%clk 0:00:21]} 38. Nc1 {[%clk 0:00:23]}  Rd4 {[%clk 0:00:19]} 39. Rc2 {[%clk 0:00:20]}  f4 {[%clk 0:00:18]} 40. gxf4 {[%clk 0:00:20]}  Rxf4+ {[%clk 0:00:19]} 41. Kg3 {[%clk 0:00:19]}  f5 {[%clk 0:00:17]} 42. Rf2 {[%clk 0:00:16]}  Rxf2 {[%clk 0:00:16]} 43. Kxf2 {[%clk 0:00:17]}  f4 {[%clk 0:00:16]} 44. Kf3 {[%clk 0:00:17]}  Ke6 {[%clk 0:00:16]} 45. Nb3 {[%clk 0:00:16]}  Kf5 {[%clk 0:00:14]} 46. Nd2 {[%clk 0:00:15]}  e4+ {[%clk 0:00:14]} 47. Kg2 {[%clk 0:00:14]}  e3 {[%clk 0:00:13]} 48. Nb3 {[%clk 0:00:13]}  Ke4 {[%clk 0:00:13]} 49. Nc1 {[%clk 0:00:07]}  f3+ {[%clk 0:00:13]} 50. Kg3 {[%clk 0:00:00]}  f2 {[%clk 0:00:13]} 0-1


[Site "https://www.chess.com"]

[Event "Titled Tuesday Blitz November 14 Late 2023"]
[White "Wadsworth, Matthew J"]
[Black "Harish, Neeraj"]
[WhiteFideId "415804"]
[BlackFideId "30958130"]
[WhiteElo "2617"]
[BlackElo "2341"]
[Result "1-0"]
[Round "1"]
[TimeControl "180+1"]
[Date "2023.11.14"]
[WhiteClock "0:00:55"]
[BlackClock "0:00:02"]
[Board "112"]

1. d4 {[%clk 0:03:00]}  Nf6 {[%clk 0:02:57]} 2. Bf4 {[%clk 0:03:01]}  d5 {[%clk 0:02:57]} 3. e3 {[%clk 0:03:01]}  c5 {[%clk 0:02:55]} 4. c3 {[%clk 0:03:00]}  Nc6 {[%clk 0:02:54]} 5. Nd2 {[%clk 0:03:00]}  Bf5 {[%clk 0:02:53]} 6. Ngf3 {[%clk 0:02:58]}  e6 {[%clk 0:02:44]} 7. Nh4 {[%clk 0:02:57]}  Bg6 {[%clk 0:02:39]} 8. Nxg6 {[%clk 0:02:57]}  hxg6 {[%clk 0:02:40]} 9. h3 {[%clk 0:02:56]}  Bd6 {[%clk 0:02:38]} 10. Bxd6 {[%clk 0:02:54]}  Qxd6 {[%clk 0:02:39]} 11. Bb5 {[%clk 0:02:52]}  a6 {[%clk 0:02:33]} 12. Bxc6+ {[%clk 0:02:50]}  Qxc6 {[%clk 0:02:29]} 13. dxc5 {[%clk 0:02:46]}  Qxc5 {[%clk 0:02:29]} 14. Qa4+ {[%clk 0:02:45]}  b5 {[%clk 0:02:27]} 15. Qd4 {[%clk 0:02:43]}  Qxd4 {[%clk 0:02:26]} 16. cxd4 {[%clk 0:02:43]}  Kd7 {[%clk 0:02:26]} 17. Nb3 {[%clk 0:02:43]}  Kd6 {[%clk 0:02:21]} 18. f3 {[%clk 0:02:36]}  Rac8 {[%clk 0:02:19]} 19. Kd2 {[%clk 0:02:36]}  Nd7 {[%clk 0:02:19]} 20. Rac1 {[%clk 0:02:35]}  Rc4 {[%clk 0:02:18]} 21. Na5 {[%clk 0:02:31]}  Rcc8 {[%clk 0:02:13]} 22. Nb7+ {[%clk 0:02:24]}  Ke7 {[%clk 0:02:12]} 23. b3 {[%clk 0:02:24]}  a5 {[%clk 0:01:58]} 24. Nxa5 {[%clk 0:02:23]}  Ra8 {[%clk 0:01:56]} 25. b4 {[%clk 0:02:22]}  Nb6 {[%clk 0:01:49]} 26. Rc7+ {[%clk 0:02:21]}  Kf6 {[%clk 0:01:48]} 27. e4 {[%clk 0:02:10]}  Nc4+ {[%clk 0:01:43]} 28. Nxc4 {[%clk 0:02:10]}  Rxa2+ {[%clk 0:01:37]} 29. Ke3 {[%clk 0:02:07]}  dxc4 {[%clk 0:01:28]} 30. e5+ {[%clk 0:02:05]}  Kg5 {[%clk 0:01:27]} 31. g3 {[%clk 0:01:57]}  Rha8 {[%clk 0:01:26]} 32. h4+ {[%clk 0:01:43]}  Kh6 {[%clk 0:01:26]} 33. Rxf7 {[%clk 0:01:36]}  R8a3+ {[%clk 0:01:10]} 34. Kf4 {[%clk 0:01:36]}  Rd2 {[%clk 0:01:04]} 35. Kg4 {[%clk 0:01:25]}  Rxd4+ {[%clk 0:01:03]} 36. f4 {[%clk 0:01:25]}  c3 {[%clk 0:00:51]} 37. h5 {[%clk 0:01:19]}  c2 {[%clk 0:00:26]} 38. Rc7 {[%clk 0:00:59]}  Rdd3 {[%clk 0:00:12]} 39. hxg6+ {[%clk 0:00:59]}  Kxg6 {[%clk 0:00:12]} 40. Rg1 {[%clk 0:00:58]}  Rdc3 {[%clk 0:00:11]} 41. Rxc3 {[%clk 0:00:58]}  Rxc3 {[%clk 0:00:11]} 42. Rc1 {[%clk 0:00:59]}  Kf7 {[%clk 0:00:07]} 43. Kh4 {[%clk 0:00:58]}  Ke7 {[%clk 0:00:07]} 44. g4 {[%clk 0:00:58]}  Kd7 {[%clk 0:00:07]} 45. Kg5 {[%clk 0:00:58]}  Kc6 {[%clk 0:00:06]} 46. Kg6 {[%clk 0:00:58]}  Kd5 {[%clk 0:00:06]} 47. Kxg7 {[%clk 0:00:58]}  Ke4 {[%clk 0:00:06]} 48. Kf6 {[%clk 0:00:56]}  Kxf4 {[%clk 0:00:07]} 49. g5 {[%clk 0:00:56]}  Kg4 {[%clk 0:00:04]} 50. g6 {[%clk 0:00:56]}  Kh5 {[%clk 0:00:04]} 51. g7 {[%clk 0:00:56]}  Rf3+ {[%clk 0:00:04]} 52. Kxe6 {[%clk 0:00:55]}  Rg3 {[%clk 0:00:03]} 53. Rh1+ {[%clk 0:00:55]}  Kg6 {[%clk 0:00:02]} 54. g8=Q# {[%clk 0:00:55]} 1-0


[Site "https://www.chess.com"]

[Event "Titled Tuesday Blitz November 14 Late 2023"]
[White "Chabris, Christopher"]
[Black "Vlassov, Nikolai"]
[WhiteFideId "2005263"]
[BlackFideId "4103360"]
[WhiteElo "2341"]
[BlackElo "2614"]
[Result "0-1"]
[Round "1"]
[TimeControl "180+1"]
[Date "2023.11.14"]
[WhiteClock "0:00:00"]
[BlackClock "0:00:20"]
[Board "113"]

1. e4 {[%clk 0:02:59]}  Nc6 {[%clk 0:02:59]} 2. Nf3 {[%clk 0:02:57]}  d5 {[%clk 0:02:59]} 3. exd5 {[%clk 0:02:56]}  Qxd5 {[%clk 0:02:59]} 4. Nc3 {[%clk 0:02:57]}  Qa5 {[%clk 0:02:59]} 5. Bb5 {[%clk 0:02:53]}  Bd7 {[%clk 0:02:59]} 6. O-O {[%clk 0:02:52]}  a6 {[%clk 0:03:00]} 7. Bc4 {[%clk 0:02:45]}  Nf6 {[%clk 0:02:56]} 8. d4 {[%clk 0:02:44]}  Bg4 {[%clk 0:02:51]} 9. h3 {[%clk 0:02:40]}  Bxf3 {[%clk 0:02:41]} 10. Qxf3 {[%clk 0:02:40]}  O-O-O {[%clk 0:02:41]} 11. d5 {[%clk 0:02:29]}  Nd4 {[%clk 0:02:21]} 12. Qf4 {[%clk 0:02:11]}  Nb5 {[%clk 0:01:59]} 13. Bxb5 {[%clk 0:02:04]}  axb5 {[%clk 0:01:59]} 14. b4 {[%clk 0:02:04]}  Qa6 {[%clk 0:01:53]} 15. Rd1 {[%clk 0:01:26]}  e6 {[%clk 0:01:49]} 16. Be3 {[%clk 0:01:14]}  Nxd5 {[%clk 0:01:42]} 17. Nxd5 {[%clk 0:01:12]}  Rxd5 {[%clk 0:01:42]} 18. Qxf7 {[%clk 0:00:53]}  Bxb4 {[%clk 0:01:35]} 19. Qxg7 {[%clk 0:00:44]}  Rhd8 {[%clk 0:01:32]} 20. Rxd5 {[%clk 0:00:35]}  exd5 {[%clk 0:01:28]} 21. Qg4+ {[%clk 0:00:32]}  Kb8 {[%clk 0:01:22]} 22. Qxb4 {[%clk 0:00:31]}  b6 {[%clk 0:01:14]} 23. Bf4 {[%clk 0:00:26]}  Kb7 {[%clk 0:01:12]} 24. Qe7 {[%clk 0:00:25]}  Rc8 {[%clk 0:01:12]} 25. Qxh7 {[%clk 0:00:21]}  Qa4 {[%clk 0:01:10]} 26. Bg3 {[%clk 0:00:18]}  Qc4 {[%clk 0:01:03]} 27. Qd3 {[%clk 0:00:18]}  Qc5 {[%clk 0:01:02]} 28. a4 {[%clk 0:00:17]}  Rg8 {[%clk 0:01:01]} 29. Kh2 {[%clk 0:00:16]}  b4 {[%clk 0:00:59]} 30. a5 {[%clk 0:00:15]}  bxa5 {[%clk 0:00:59]} 31. f3 {[%clk 0:00:09]}  Kb6 {[%clk 0:00:44]} 32. Be5 {[%clk 0:00:09]}  Qc4 {[%clk 0:00:39]} 33. Bd4+ {[%clk 0:00:07]}  c5 {[%clk 0:00:39]} 34. Bg1 {[%clk 0:00:04]}  Qxd3 {[%clk 0:00:37]} 35. cxd3 {[%clk 0:00:04]}  Kb5 {[%clk 0:00:37]} 36. h4 {[%clk 0:00:04]}  a4 {[%clk 0:00:36]} 37. h5 {[%clk 0:00:04]}  a3 {[%clk 0:00:35]} 38. h6 {[%clk 0:00:02]}  c4 {[%clk 0:00:24]} 39. Be3 {[%clk 0:00:02]}  b3 {[%clk 0:00:20]} 40. dxc4+ {[%clk 0:00:01]}  dxc4 {[%clk 0:00:20]} 41. Rxa3 {[%clk 0:00:00]}  b2 {[%clk 0:00:20]} 0-1


[Site "https://www.chess.com"]